Workbook

Sheet Instructions
A6: Instructions
A8: 1.) Find a quiet place and allow yourself the full four hour exam period to practice. Treat this just as you would the real exam.
A10: 2.) Use the Navigator worksheet to see a brief description of each question, its point value and navigate between questions in your preferred order.
A12: 3.) Answer each question either to the side or below the grey question area.
A14: 4.) Use cell B1 on each question worksheet to mark whether you finished the question or not. You should use this feature to
A15: reflect your confidence in your answer. This way you'll know if you're on the money or your guesses were lucky.
A17: 5.) Grade each question harshly. It's better to put in extra reviewing time now than find the examiners aren't as generous as you hoped.
A18: Use increments of 0.25 when scoring; pay attention to the language used in the question and the point value. An "identify" question
A19: is likely 0.25 per item while an "explain" or "briefly justify" gets 0.25 for the item and another 0.25 for the justification.
A21: 6.) Enter your estimated score for each sub-part of a question in the box beneath the sub-part point value. They look like:
A23: 7.) Use the Point Grid to see your score and a breakdown of where you scored well and where you didn't.
A25: 8.) Find the top five questions where you lost the most points. These are the topics you need to review the most intensely in the
A26: next day or so.
A28: 9.) On the BattleActs site → Custom Battles → BattleCards - Prior Exams → Select this exam and mark the cards you got right and wrong.
A29: This allows your Battle Readiness Quotient (BRQ) to track your strengths and weaknesses.
A31: 10.) Use the Reset Exam button on the Point Grid worksheet to clear all of your work ready for a new attempt at this exam later.
A32: slay the beast

Sheet Formula Sheet (hidden)
A6: FORMULA SHEET
A8: • For the negative binomial distribution (for use on question 3):
B10: ○
B13: ○
A16: • For the shifted Pareto distribution (for use on questions 7, 13 & 15):
B18: ○
B21: ○
B24: ○
B27: ○

Sheet Point Grid
A5: 2017 Exam 8
B6: Total Point Value | C6: Sub-Part of Question | L6: Your Score | M6: Sub-Part of Question
A7: Question | C7: (a) | D7: (b) | E7: (c) | F7: (d) | G7: (e) | H7: (f) | I7: (g) | J7: Status | L7: Question | M7: (a) | N7: (b) | O7: (c) | P7: (d) | Q7: (e) | R7: (f) | S7: (g)
A8: 1 | B8: =SUM(C8:I8) -> 8.5 | C8: 1.5 | D8: 2 | E8: 1.5 | F8: 1.5 | G8: 1 | H8: 1 | J8: =INDIRECT("'"&A8&"'!B1") -> Finished | L8: =A8 -> 1 | M8: =_xlfn.IFNA(IF(ISBLANK(INDEX(INDIRECT("'"&$L8&"'!$A:$A"),MATCH(M$7,INDIRECT("'"&$L8&"'!$A:$A"),0)+2)),"",INDEX(INDIRECT("'"&$L8&"'!$A:$A"),MATCH(M$7,INDIRECT("'"&$L8&"'!$A:$A"),0)+2)),"") -> 1.5 | N8: 2 | O8: 1.5 | P8: 1.5 | Q8: 1 | R8: 1
A9: 2 | B9: =SUM(C9:I9) -> 2 | C9: 1.75 | D9: 0.25 | J9: =INDIRECT("'"&A9&"'!B1") -> Finished | L9: =A9 -> 2 | M9: 1.75 | N9: 0.25
A10: 3 | B10: 1.5 | C10: 0.75 | D10: 0.75 | J10: Finished | L10: 3 | M10: 0.75 | N10: 0.75
A11: 4 | B11: 1.75 | C11: 0.5 | D11: 0.75 | E11: 0.5 | J11: Finished | L11: 4 | M11: 0.5 | N11: 0.75 | O11: 0.5
A12: 5 | B12: 1.75 | C12: 1.75 | J12: Finished | L12: 5 | M12: 1.75
A13: 6 | B13: 3.5 | C13: 1 | D13: 1.5 | E13: 0.5 | F13: 0.5 | J13: Finished | L13: 6 | M13: 1 | N13: 1.5 | O13: 0.5 | P13: 0.5
A14: 7 | B14: 1.75 | C14: 1 | D14: 0.75 | J14: Finished | L14: 7 | M14: 1 | N14: 0.75
A15: 8 | B15: 1.75 | C15: 0.75 | D15: 1 | J15: Finished | L15: 8 | M15: 0.75 | N15: 1
A16: 9 | B16: 3.25 | C16: 3.25 | J16: Finished | L16: 9 | M16: 3.25
A17: 10 | B17: 1 | C17: 1 | J17: Finished | L17: 10 | M17: 1
A18: 11 | B18: 2.5 | C18: 1.5 | D18: 1 | J18: Finished | L18: 11 | M18: =_xlfn.IFNA(IF(ISBLANK(INDEX(INDIRECT("'"&$L18&"'!$A:$A"),MATCH(M$7,INDIRECT("'"&$L18&"'!$A:$A"),0)+2)),"",INDEX(INDIRECT("'"&$L18&"'!$A:$A"),MATCH(M$7,INDIRECT("'"&$L18&"'!$A:$A"),0)+2)),"") -> 1.5 | N18: 1
A19: 12 | B19: 3.25 | C19: 1 | D19: 0.5 | E19: 0.5 | F19: 1.25 | J19: Finished | L19: 12 | M19: 1 | N19: 0.5 | O19: 0.5 | P19: 1.25
A20: 13 | B20: 2.5 | C20: 2 | D20: 0.5 | J20: Finished | L20: 13 | M20: 2 | N20: 0.5
A21: 14 | B21: 3 | C21: 1.5 | D21: 1.5 | J21: Finished | L21: 14 | M21: 1.5 | N21: 1.5
A22: 15 | B22: 3.25 | C22: 1.75 | D22: 1 | E22: 0.5 | J22: Finished | L22: 15 | M22: 1.75 | N22: 1 | O22: 0.5
A23: 16 | B23: 1.75 | C23: 0.5 | D23: 1.25 | J23: Finished | L23: 16 | M23: 0.5 | N23: 1.25
A24: 17 | B24: 2 | C24: 1.5 | D24: 0.5 | J24: Finished | L24: 17 | M24: 1.5 | N24: 0.5
A25: 18 | B25: =SUM(C25:I25) -> 3.25 | C25: 2 | D25: 0.75 | E25: 0.5 | J25: Finished | L25: =A25 -> 18 | M25: 2 | N25: 0.75 | O25: 0.5
A26: 19 | B26: 3 | C26: 1.5 | D26: 0.5 | E26: 1 | J26: Finished | L26: 19 | M26: 1.5 | N26: 0.5 | O26: 1
A27: 20 | B27: 2.5 | C27: 0.75 | D27: 1.75 | J27: Finished | L27: 20 | M27: 0.75 | N27: 1.75
A29: Total | B29: =SUM(B8:B27) -> 53.75 | L29: TOTAL | M29: =IF(SUM(IF(M8:S27="",0,1))=0,"",SUM(M8:S27)) -> 53.75 | O29: Percentage: | P29: =IF(M29="","",M29/B29) -> 1
L31: Passing Score: | M31: 37.5

Sheet Navigator
A6: Navigator – Select a question to go to it
A8: Question # | H8: Status
A9: Q1 -- Goldburd (GLM) -- Variable Selection (IQ) -- 8.50 points | H9: ='Point Grid'!J8 -> Finished
A10: Q2 -- Robertson -- Weighted k-means -- 2.00 points | H10: ='Point Grid'!J9 -> Finished
A11: Q3 -- Bailey & Simon -- Relative Credibility -- 1.50 points | H11: ='Point Grid'!J10 -> Finished
A12: Q4 -- Goldburd (GLM) -- Model Selection -- 1.75 points | H12: ='Point Grid'!J11 -> Finished
A13: Q5 -- Goldburd (GLM) -- Null, Saturated & Practical Models -- 1.75 points | H13: ='Point Grid'!J12 -> Finished
A14: Q6 -- Goldburd (GLM) -- Logistic Regression --3.50 points | H14: ='Point Grid'!J13 -> Finished
A15: Q7 -- Bahnemann -- Risk Loaded ILFs -- 1.75 points | H15: ='Point Grid'!J14 -> Finished
A16: Q8 -- Bahnemann -- Layer Inflation -- 1.75 points | H16: ='Point Grid'!J15 -> Finished
A17: Q9 -- ISO CGL -- Experience Modified Premium -- 3.25 points | H17: ='Point Grid'!J16 -> Finished
A18: Q10 -- ISO CGL -- Schedule Rating -- 1.00 point | H18: ='Point Grid'!J17 -> Finished
A19: Q11 -- Fisher -- Efficiency Test -- 2.50 points | H19: ='Point Grid'!J18 -> Finished
A20: Q12 -- Fisher -- Lee Diagrams -- 3.25 points | H20: ='Point Grid'!J19 -> Finished
A21: Q13 -- Fisher -- Retrospective Premium -- 2.50 points | H21: ='Point Grid'!J20 -> Finished
A22: Q14 -- Bahnemann -- Excess Severity -- 3.00 points | H22: ='Point Grid'!J21 -> Finished
A23: Q15 -- Fisher -- Retrospective Rating Cashflow -- 3.25 points | H23: ='Point Grid'!J22 -> Finished
A24: Q16 -- Clark -- Modeling Approaches -- 1.75 points | H24: ='Point Grid'!J23 -> Finished
A25: Q17 -- Fisher -- ICRLL Adjustment -- 2.00 points | H25: ='Point Grid'!J24 -> Finished
A26: Q18 -- Bernegger -- Exposure Curves -- 3.25 points | H26: ='Point Grid'!J25 -> Finished
A27: Q19 -- Clark -- Swing Plans -- 3.00 points | H27: ='Point Grid'!J26 -> Finished
A28: Q20 -- Grossi -- Risk Loaded Premiums -- 3.00 points | H28: ='Point Grid'!J27 -> Finished

Sheet 1
A1: 1 | B1: Finished | H1: Navigator | K1: Solution
J2: (a) | K2: Industry: | L2: This has a low p-value which implies the variable is statistically significant, i.e. a good predictor of future loss.
A3: Points | B3: An actuary has constructed a pure premium model using the Tweedie distribution with parameter | L3: Industry is a variable that is easy and practical to collect and verify.
A4: =INDEX('Point Grid'!B:B,MATCH('1'!A1,'Point Grid'!A:A,0)) -> 8.5 | B4: 1 < p < 2 to determine manual rates for a Workers' Compensation book of business. The output of the model
B5: is pure premium per $100 of payroll. | K5: Employee Tenure: | M5: The low p-value implies it is significant and a good predictor of future loss.
M6: Employee tenure is directly related to future loss activity as newer employees
B7: The following variables were considered for inclusion in the model: | M7: may not be as experienced with machinary for example.
B8: Variable | D8: Description or Source of Data | G8: p-value
B9: Industry | D9: Construction, Manufacturing, All Other | G9: 0.002 | K9: Return to Work Program:
B10: Return to Work Program | D10: Yes or No | G10: 0.008 | K10: This has a low p-value so it is significant and a good predictor of future loss activity.
B11: Employee Age | D11: Average Age in Years | G11: 0.003 | K11: There is a clear relationship between the length of time off of work and the cost occurred
B12: Employee Tenure | D12: Average Number of Years of Employment | G12: 0.005 | K12: by the employer. It is a binary variable that is easy to obtain and verify.
B13: Location | D13: State of Jurisdiction | G13: 0.08
B14: Employee Morale | D14: Based on Results of Annual Company Survey | G14: 0.15 | J14: (b) | K14: Employee Age: | M14: It has a low p-value implying it is significant and a predictor of future loss.
B15: Number of Back Injuries | D15: Supplied by Employer | G15: 0.01 | M15: However, it may be against the law (discriminatory practice) to use age.
B17: The actuary has decided to use the following variables in the model: Industry, Employee Tenure, and | K17: Location: | L17: The p-value is high which suggests this variable is not likely to be a significant predictor of future loss activity.
B18: Return to Work Program. | L18: The variable makes intuitive sense as some states have more generous laws for workers' compensation
L19: which favor the worker but increase costs for the employer.
A20: (a) | B20: Discuss the statistical and non-statistical considerations of including each of the three variables (Industry,
A21: =INDEX('Point Grid'!$C$8:$I$29,MATCH($A$1,'Point Grid'!$A$8:$A$29,0),MATCH(A20,'Point Grid'!$C$7:$I$7,0)) -> 1.5 | B21: Employee Tenure, and Return to Work Program) in the model. | K21: Employee Moral: | M21: The p-value suggests this is not a signficant variable (not a good predictor of future loss).
A22: 1.5 | M22: This variable is highly subjective and time dependent. It would be difficult to objectively collect and verify.
A24: (b) | B24: Discuss the statistical and non-statistical considerations of excluding each of the remaining four variables | K24: Number of Back Injury Claims:
A25: =INDEX('Point Grid'!$C$8:$I$29,MATCH($A$1,'Point Grid'!$A$8:$A$29,0),MATCH(A24,'Point Grid'!$C$7:$I$7,0)) -> 2 | B25: (Employee Age, Location, Employee Morale, and Number of Back Injuries) from the model. | K25: The p-value is quite small, indicating it is significant and may be a fair
A26: 2 | K26: predictor of future loss.
K27: The information is supplied by the employer which may make it difficult to
A28: (c) | B28: The actuary fits the log link GLM model using the three selected variables. Given the fitted model parameters | K28: verify or open to gaming by the insured to achieve lower rates.
A29: =INDEX('Point Grid'!$C$8:$I$29,MATCH($A$1,'Point Grid'!$A$8:$A$29,0),MATCH(A28,'Point Grid'!$C$7:$I$7,0)) -> 1.5 | B29: below and the following information for a Manufacturing Workers' Compensation risk, calculate the
A30: 1.5 | B30: standard premium for this risk for an annual policy period. | J30: (c) | K30: I will treat a manufacturing risk as an "All Other" industry type. | Q30: ← Alice: "The other option is to assume Manufacturing risks are the base class.
K31: Treat employee tenure as a discrete variable. | Q31: since the base class always has 1.000 for its coefficient, it isn't listed."
C32: Parameter | E32: Coefficient
C33: Intercept | E33: -0.631 | K33: Apply GLM
C34: Employee Tenure | E34: -0.04 | K34: ln(u) = -0.631 + -0.04*5 + -0.2*0 + -0.55*1
C35: Return to Work Program: Yes | E35: -0.2 | K35: u = | L35: =EXP(E33+E34*5+E35*0+E37*1) -> 0.2513271003
C36: Industry Type: Construction | E36: 0.35 | K36: ="i.e. "&TEXT(L35,"$0.00")&" per $100 of payroll" -> i.e. $0.25 per $100 of payroll
C37: Industry Type: All Other | E37: -0.55
K38: Expected Loss = u * Payroll/$100
C39: Data for Manufacturing Risk | F39: Value | K39: =L35*F40/100 -> 2513.271003
C40: Payroll | F40: 1000000
C41: Employee Tenure | F41: 5 Years | K41: Standard Premium = Loss + Fixed Expense + Variable Expense
C42: Return to Work Program | F42: No | K42: P = Expected Loss + 1500 + 0.2P
C43: Actual Losses for Experience Rating | F43: 12500 | K43: P = | L43: =(K39+F44)/(1-F45) -> 5016.588753 | N43: ← Alice: "This is the manual premium."
C44: Fixed Expenses | F44: 1500
C45: Variable Expenses (as % of premium) | F45: 0.2 | K45: Experience Mod = (Actual ratable loss + K) / (Expected ratable loss + K)
C46: Experience rating Constant (K) | F46: 10000 | K46: =(F43+F46)/(K39+F46) -> 1.798091002
B48: The actuary has graphed actual vs. modeled expected loss ratios by size of risk for the company's entire | K48: Standard Premium = Manual Premium * Mod
B49: Workers' Compensation book, which is shown below. | K49: =L43*K46 -> 9020.2831
A51: (d) | B51: In order to improve the model fit for larger risks, the actuary is considering incorporating the variable | J51: (d) | K51: • The historical loss experience already impacts the premium through experience rating.
A52: =INDEX('Point Grid'!$C$8:$I$29,MATCH($A$1,'Point Grid'!$A$8:$A$29,0),MATCH(A51,'Point Grid'!$C$7:$I$7,0)) -> 1.5 | B52: "Latest 3 Year Historical Losses" into the model. Explain three reasons against doing so. | K52: Inclusion here would be double counting.
A53: 1.5 | K53: • Small risks have volatile experience, so incorporating the latest 3 years of historical
K54: losses will cause their premiums to fluctuate.
K55: • The latest 3 year losses will not be fully developed. If the reporting lag varies by company
K56: then the loss experience may be over or under predicted.
J58: (e) | K58: • Since the risk is new there is no prior loss history (not even from a previous insurer) to draw on.
K59: This makes it difficult to know whether the manual premium is adequate or not when
K60: experience rating.
K61: • The high payroll amount puts the risk in a high manual premium range where
K62: the model is less good at predicting the actual losses.
J64: (f) | K64: Use a retrospective rating plan. This would allow premium adjustments as
K65: losses are incurred (or paid), allowing the insured some of the benefits similar to
K66: experience rating. Further, the insured may benefit from a cash flow advantage.
K67: The insurer will not need to hold as much capital under this type of plan so they can
K68: write more business and diversify risk further.
B73: The actuary is now developing a quote for a new Construction risk with $50,000,000 of payroll using this
B74: rating plan.
A76: (e) | B76: Describe two potential issues in developing a premium for this risk under this rating plan.
A77: =INDEX('Point Grid'!$C$8:$I$29,MATCH($A$1,'Point Grid'!$A$8:$A$29,0),MATCH(A76,'Point Grid'!$C$7:$I$7,0)) -> 1
A78: 1
A80: (f) | B80: Provide an alternative rating approach for this risk and briefly discuss the advantages of this alternative for
A81: =INDEX('Point Grid'!$C$8:$I$29,MATCH($A$1,'Point Grid'!$A$8:$A$29,0),MATCH(A80,'Point Grid'!$C$7:$I$7,0)) -> 1 | B81: the insured as well as the insurance company.
A82: 1

Sheet 2
A1: 2 | B1: Finished | H1: Navigator | K1: Solution
J2: (a) | K2: Since we have two limits, the centroid of each cluster has two coordinates. The first
A3: Points | B3: An actuary wants to cluster five Workers' Compensation classes based on excess ratios at | K3: corresponds to the weighted average excess ratio for the 500,000 limit for classes in the cluster,
A4: =INDEX('Point Grid'!B:B,MATCH('2'!A1,'Point Grid'!A:A,0)) -> 2 | B4: two limits: 500,000 and 1,000,000. The actuary decides to use a weighted k-means | K4: while the second corresponds to the weighted average excess ratio for the 1,000,000 limit.
B5: algorithm with two clusters. Given the following:
K6: Centroids | L6: Limit
B7: Class | C7: On-Leveled Earned Premium ($000) | D7: Normalized Excess Ratio at 500,000 Limit | E7: Normalized Excess Ratio at 1,000,000 Limit | F7: Initial Cluster | K7: Cluster | L7: 500000 | M7: 1000000
K8: A | L8: =(C10*D10+C11*D11+C12*D12+C13*D13)/SUM(C10:C13) -> 0.2421621622 | M8: =(C10*E10+C11*E11+C12*E12+C13*E13)/SUM(C10:C13) -> 0.1043243243
K9: B | L9: =C14*D14/C14 -> 0.18 | M9: =C14*E14/C14 -> 0.07
B10: 1 | C10: 6500 | D10: 0.24 | E10: 0.08 | F10: A
B11: 2 | C11: 5000 | D11: 0.35 | E11: 0.2 | F11: A | K11: We're told to use the Euclidean norm.
B12: 3 | C12: 4000 | D12: 0.21 | E12: 0.08 | F12: A
B13: 4 | C13: 3000 | D13: 0.11 | E13: 0.03 | F13: A | K13: Class | L13: Dist to A | M13: Dist to B | N13: New Cluster
B14: 5 | C14: 5000 | D14: 0.18 | E14: 0.07 | F14: B | K14: 1 | L14: =SQRT((D10-$L$8)^2+(E10-$M$8)^2) -> 0.02442023135 | M14: =SQRT((D10-$L$9)^2+(E10-$M$9)^2) -> 0.0608276253 | N14: =IF(L14<M14,"A","B") -> A
K15: 2 | L15: =SQRT((D11-$L$8)^2+(E11-$M$8)^2) -> 0.144162527 | M15: =SQRT((D11-$L$9)^2+(E11-$M$9)^2) -> 0.2140093456 | N15: =IF(L15<M15,"A","B") -> A
B16: • Distance will be measured using the L2 (Euclidean) norm. | K16: 3 | L16: =SQRT((D12-$L$8)^2+(E12-$M$8)^2) -> 0.04032465039 | M16: =SQRT((D12-$L$9)^2+(E12-$M$9)^2) -> 0.0316227766 | N16: B
B17: • At the start of the algorithm, the actuary randomly assigns each class to a cluster. | K17: 4 | L17: 0.1516276436 | M17: 0.08062257748 | N17: B
K18: 5 | L18: 0.07100910959 | M18: 0 | N18: B
A19: (a) | B19: Determine the cluster for each class after the first iteration of the weighted k-means algorithm.
A20: =INDEX('Point Grid'!$C$8:$I$29,MATCH($A$1,'Point Grid'!$A$8:$A$29,0),MATCH(A19,'Point Grid'!$C$7:$I$7,0)) -> 1.75 | J20: (b) | K20: The L1 measure penalizes many small errors the same amount as one large error.
A21: 1.75 | K21: This results in outliers having less of an impact on the result.
A23: (b) | B23: Briefly describe one advantage of using the L1 measure rather than L2 when computing clusters.
A24: =INDEX('Point Grid'!$C$8:$I$29,MATCH($A$1,'Point Grid'!$A$8:$A$29,0),MATCH(A23,'Point Grid'!$C$7:$I$7,0)) -> 0.25
A25: 0.25

Sheet 3
A1: 3 | B1: Finished | F1: Navigator | H1: Solution
G2: (a) | H2: Using earned premium as the exposure base will only correct for maldistribution due to correlation
A3: Points | B3: The following data shows the experience of a merit rating plan for private passenger | H3: between frequency and territory when:
A4: =INDEX('Point Grid'!B:B,MATCH('3'!A1,'Point Grid'!A:A,0)) -> 1.5 | B4: vehicles. The merit rating plan uses multiple rating variables, including territory. | H4: 1. Territory differentials are proper, i.e. all territories have the same loss ratio, and
H5: 2. High frequency territories are also high premium territories.
B6: Number of Accident-Free Years | C6: Earned Car Years (000s) | D6: Earned Premium ($000s) | E6: Number of Incurred Claims
H7: Here we see Territory C has the highest frequency but not the highest average premium. So 2. doesn't hold.
B8: 5 or More | C8: 250 | D8: 500000 | E8: 15000 | H8: Therefore, it is better to use earned car years as the exposure base.
B9: 3 and 4 | C9: 100 | D9: 90000 | E9: 13500
B10: 1 and 2 | C10: 80 | D10: 60000 | E10: 8000 | G10: (b) | H10: 3+ Claim Frequency: | J10: =SUM(E8:E9)/(SUM(C8:C9)*1000) -> 0.08142857143
B11: 0 | C11: 70 | D11: 50000 | E11: 10500 | H11: Overall Claim Freq: | J11: =E12/(C12*1000) -> 0.094
B12: Total | C12: =SUM(C8:C11) -> 500 | D12: =SUM(D8:D11) -> 700000 | E12: =SUM(E8:E11) -> 47000 | H12: Relative Frequency: | J12: =J10/J11 -> 0.8662613982
H13: Set Z = 1 - Rel Freq
B14: Territory | C14: Frequency | D14: Average Premium | H14: Z = | I14: =1-J12 -> 0.1337386018
B15: A | C15: 0.05 | D15: 1500
B16: B | C16: 0.1 | D16: 2000 | H16: The question is ambiguous regarding what we should calculate the credibility of the 3+ group against.
B17: C | C17: 0.15 | D17: 1250 | H17: I will assume they meant relative to the 1+ years claim free group.
H18: 1+ Claim Frequency: | J18: =SUM(E8:E10)/(SUM(C8:C10)*1000) -> 0.08488372093
A19: (a) | B19: Recommend and justify an exposure base for this merit rating plan. | H19: Relative Frequency: | J19: =J18/J11 -> 0.9030183078
A20: =INDEX('Point Grid'!$C$8:$I$29,MATCH($A$1,'Point Grid'!$A$8:$A$29,0),MATCH(A19,'Point Grid'!$C$7:$I$7,0)) -> 0.75 | H20: Set Z = 1 - Rel Freq
A21: 0.75 | H21: Z = | I21: =1-J19 -> 0.09698169223
A23: (b) | B23: Calculate the relative credibility of an exposure that has been three or more years | H23: Relative credibility of 3+ years claims free group to 1+ years claims free group
A24: =INDEX('Point Grid'!$C$8:$I$29,MATCH($A$1,'Point Grid'!$A$8:$A$29,0),MATCH(A23,'Point Grid'!$C$7:$I$7,0)) -> 0.75 | B24: accident-free using the exposure base from part (a) above. | H24: =I14/I21 -> 1.379008746
A25: 0.75
H26: Alice: "You could have calculated the credibility for the 0 years accident free group
H27: and used that instead when calculating the relativity. Here's how to get there."
H29: Assume claim frequency has a Poisson distribution. Then mean frequency (for any group is)
H30: λ = | I30: =E12/(C12*1000) -> 0.094
H31: The 0 years claims free group has relative claim frequency given by
H32: So R = | I32: =1/(1-EXP(-1*I30)) -> 11.14613005
H33: The experience mod for the group is | L33: =(E11/(C11*1000))/(E12/(C12*1000)) -> 1.595744681
H34: Using
H35: Z = | I35: =(L33-1)/(I32-1) -> 0.05871644438

Sheet 4
A1: 4 | B1: Finished | G1: Navigator | I1: Solution
H2: (a) | I2: • To prevent overfitting. As more parameters are added to the model, the fit on the training
A3: Points | B3: An actuary has split data into training and test groups for a model. The chart below shows | I3: data set always improves. The test data set may not improve, indicating the model is being
A4: =INDEX('Point Grid'!B:B,MATCH('4'!A1,'Point Grid'!A:A,0)) -> 1.75 | B4: the relationship between model performance and model complexity. Model performance | I4: fit to noise in the training data set instead.
B5: is represented by model error and model complexity is represented by degrees of freedom. | I5: • To measure the predictive power of the model. If we try to assess the model on the training
I6: data set it will be too optimistic of its performance.
H8: (b) | I8: i. The model isn't optimal because the model error is relatively high for both the train and test
I9: datasets, and we can increase the degrees of freedom in the model and have both model errors decrease.
I10: ii. The model is optimal because the model error on the test data set is at its lowest.
I11: iii. The model is overfitted to the training data set because although the model error is lowest
I12: for the train data set, the model error on the test data set has increased again.
H14: (c) | I14: When the data is impacted by a large weather event (such as a hurricane). Splitting the data
I15: by time keeps the event in either the train or the test data set. This prevents producing an
I16: overly optimistic view of the model using the test set when losses from the same underlying
I17: cause are present in both the train and test data sets.
A24: (a) | B24: Briefly describe two reasons for splitting modeling data into training and test groups.
A25: =INDEX('Point Grid'!$C$8:$I$29,MATCH($A$1,'Point Grid'!$A$8:$A$29,0),MATCH(A24,'Point Grid'!$C$7:$I$7,0)) -> 0.5
A26: 0.5
A28: (b) | B28: Briefly describe whether each of the following model iterations has an optimal balance of
A29: =INDEX('Point Grid'!$C$8:$I$29,MATCH($A$1,'Point Grid'!$A$8:$A$29,0),MATCH(A28,'Point Grid'!$C$7:$I$7,0)) -> 0.75 | B29: complexity and performance.
A30: 0.75 | B30: i. Model iteration 1: 10 degrees of freedom
B31: ii. Model iteration 2: 60 degrees of freedom
B32: iii. Model iteration 3: 100 degrees of freedom
A34: (c) | B34: Identify and briefly describe one situation where it is an advantage to split the data by time
A35: =INDEX('Point Grid'!$C$8:$I$29,MATCH($A$1,'Point Grid'!$A$8:$A$29,0),MATCH(A34,'Point Grid'!$C$7:$I$7,0)) -> 0.5 | B35: rather than by random assignment.
A36: 0.5

Sheet 5
A1: 5 | B1: Finished | G1: Navigator | I1: Solution
H2: (a) | I2: A saturated model perfectly predicts every result.
A3: Points | B3: An analyst has fit several different variations of a logistic GLM to a data set containing 1,000 | H3: (i.) | I3: We have 10,000 claim records which are perfectly predicted.
A4: =INDEX('Point Grid'!B:B,MATCH('5'!A1,'Point Grid'!A:A,0)) -> 1.75 | B4: records of fraudulent claims and 9,000 records of legitimate claims. For each model variation | I4: Ordering the claim records by prediction (0 = no fraud, 1 = fraud) from smallest to largest
B5: listed below, draw a quintile plot based on the training data. Label the axes and identify each | I5: and dividing into 5 quintiles, we see that each quintile has 2,000 claims in it.
B6: data series. | I6: So the first 4 quintiles consist of all 0 predictions and 0 fraud.
I7: The last quintile has 1,000 fraud predictions and 1,000 fraud claims out of 2,000.
A8: (a) | B8: i. A saturated model | I8: This means the % fraud is 50% in the last quintile.
A9: =INDEX('Point Grid'!$C$8:$I$29,MATCH($A$1,'Point Grid'!$A$8:$A$29,0),MATCH(A8,'Point Grid'!$C$7:$I$7,0)) -> 1.75 | B9: ii. A null model | I9: Quintile | J9: Expected Fraud | K9: Actual Fraud
A10: 1.75 | B10: iii. A model that could be used in practice | I10: 1 | J10: 0 | K10: 0
I11: 2 | J11: 0 | K11: 0
I12: 3 | J12: 0 | K12: 0
I13: 4 | J13: 0 | K13: 0
I14: 5 | J14: 0.5 | K14: 0.5
H24: (ii.) | I24: There is a 10% chance overall of a claim being fraudulent. The null model plots the overall mean.
I25: So each quintile is predicted to contain 10% fraudulent claims.
I26: Quintile | J26: Expected Fraud | K26: Actual Fraud
G27: Alice: "Notice no quintile can have more than 50% actual fraud because of the data given. | I27: 1 | J27: 0.1 | K27: 0.2385
G28: The CAS penalized poor axis values…" | I28: 2 | J28: 0.1 | K28: 0.0155
I29: 3 | J29: 0.1 | K29: 0.036
I30: 4 | J30: 0.1 | K30: 0.0365
I31: 5 | J31: 0.1 | K31: 0.1735
H41: (iii.) | I41: A practical model will accurately predict a large number of the fraudulent claims but not all.
I42: Quintile | J42: Expected Fraud | K42: Actual Fraud
I43: 1 | J43: 0.0605 | K43: 0.086
I44: 2 | J44: 0.0655 | K44: 0.056
I45: 3 | J45: 0.1075 | K45: 0.0925
I46: 4 | J46: 0.1225 | K46: 0.149
I47: 5 | J47: 0.144 | K47: 0.1165

Sheet 6
A1: 6 | B1: Finished | G1: Navigator | I1: Solution | K1: Predicted Above
H2: (a) | I2: Claim | J2: Actual | K2: 0.5 | L2: 0.25
A3: Points | B3: A logistic model was built to predict the probability of a claim being fraudulent. Consider the | I3: 1 | J3: =D8 -> Y | K3: =IF(E8>50%,"Y","N") -> N | L3: =IF(E8>25%,"Y","N") -> N
A4: =INDEX('Point Grid'!B:B,MATCH('6'!A1,'Point Grid'!A:A,0)) -> 3.5 | B4: predicted probabilities for the 10 claims below to be a representative sample of the total | I4: 2 | J4: =D9 -> N | K4: =IF(E9>50%,"Y","N") -> N | L4: =IF(E9>25%,"Y","N") -> N
B5: model. | I5: 3 | J5: N | K5: N | L5: N
C6: Claim Number | D6: Actual Fraud Indicator | E6: Predicted Probability of Fraud | I6: 4 | J6: N | K6: Y | L6: Y
I7: 5 | J7: Y | K7: Y | L7: Y
C8: 1 | D8: Y | E8: 0.11 | I8: 6 | J8: Y | K8: N | L8: Y
C9: 2 | D9: N | E9: 0.23 | I9: 7 | J9: N | K9: N | L9: N
C10: 3 | D10: N | E10: 0.15 | I10: 8 | J10: Y | K10: Y | L10: Y
C11: 4 | D11: N | E11: 0.7 | I11: 9 | J11: N | K11: Y | L11: Y
C12: 5 | D12: Y | E12: 0.91 | I12: 10 | J12: N | K12: N | L12: Y
C13: 6 | D13: Y | E13: 0.3
C14: 7 | D14: N | E14: 0.11 | I14: Confusion Matrix at 0.50 | M14: Confusion Matrix at 0.25
C15: 8 | D15: Y | E15: 0.75 | J15: Predicted | N15: Predicted
C16: 9 | D16: N | E16: 0.58 | I16: Actual | J16: =COUNTIFS($K$3:$K$12,"Y",$J$3:$J$12,"Y") -> 2 | K16: =COUNTIFS($K$3:$K$12,"N",$J$3:$J$12,"Y") -> 2 | M16: Actual | N16: =COUNTIFS($L$3:$L$12,"Y",$J$3:$J$12,"Y") -> 3 | O16: =COUNTIFS($L$3:$L$12,"N",$J$3:$J$12,"Y") -> 1
C17: 10 | D17: N | E17: 0.27 | J17: =COUNTIFS($K$3:$K$12,"Y",$J$3:$J$12,"N") -> 2 | K17: =COUNTIFS($K$3:$K$12,"N",$J$3:$J$12,"N") -> 4 | N17: =COUNTIFS($L$3:$L$12,"Y",$J$3:$J$12,"N") -> 3 | O17: =COUNTIFS($L$3:$L$12,"N",$J$3:$J$12,"N") -> 3
A19: (a) | B19: Construct confusion matrices for discrimination thresholds of 0.50 and 0.25. | H19: (b) | I19: The ROC curve has the sensitivity on the y-axis and the false positive rate on the x-axis.
A20: =INDEX('Point Grid'!$C$8:$I$29,MATCH($A$1,'Point Grid'!$A$8:$A$29,0),MATCH(A19,'Point Grid'!$C$7:$I$7,0)) -> 1 | I20: Sensitivity = TP / (TP + FN)
A21: 1 | I21: Specificity = TN / (TN + FP)
I22: False Positive Rate = 1 - Specificity
A23: (b) | B23: Plot the Receiver Operating Characteristic (ROC) curve with the discrimination thresholds of 0.50
A24: =INDEX('Point Grid'!$C$8:$I$29,MATCH($A$1,'Point Grid'!$A$8:$A$29,0),MATCH(A23,'Point Grid'!$C$7:$I$7,0)) -> 1.5 | B24: and 0.25. Label each axis and the coordinates and discrimination threshold of each point on the | I24: Threshold | J24: x-coord | K24: y-coord | L24: Line of Equality
A25: 1.5 | B25: curve. | I25: 0 | J25: 1 | K25: 1 | L25: =I25 -> 0
I26: 0.25 | J26: =1-O17/SUM(N17:O17) -> 0.5 | K26: =N16/SUM(N16:O16) -> 0.75 | L26: =I26 -> 0.25
A27: (c) | B27: Describe an advantage and a disadvantage of selecting a discrimination threshold of 0.25 instead | I27: 0.5 | J27: =1-K17/SUM(J17:K17) -> 0.3333333333 | K27: =J16/SUM(J16:K16) -> 0.5 | L27: 0.5
A28: =INDEX('Point Grid'!$C$8:$I$29,MATCH($A$1,'Point Grid'!$A$8:$A$29,0),MATCH(A27,'Point Grid'!$C$7:$I$7,0)) -> 0.5 | B28: of 0.50. | I28: 1 | J28: 0 | K28: 0 | L28: 1
A29: 0.5
A31: (d) | B31: Describe whether a discrimination threshold of 0.25 or 0.50 is more appropriate for a line of
A32: =INDEX('Point Grid'!$C$8:$I$29,MATCH($A$1,'Point Grid'!$A$8:$A$29,0),MATCH(A31,'Point Grid'!$C$7:$I$7,0)) -> 0.5 | B32: business with low frequency and high severity.
A33: 0.5
H34: (c) | I34: An advantage of a lower threshold is we correctly identify more of the fraudulent claims.
I35: A disadvantage of a lower threshold is we will flag more non-fraudulent claims as potentially fraudulent,
I36: so more time will be spent investigating.
H38: (d) | I38: A threshold of 0.25 is more appropriate because the high severity means the cost of not
I39: investigating a fraudulent claim is high. The low frequency means there will not be
I40: many claims to begin with, so flagging more claims as potentially fraudulent will not
I41: drastically increase the workload yet will result in correctly identifying more fraud.

Sheet 7
A1: 7 | B1: Finished | G1: Navigator | J1: Solution
I2: (a) | J2: Risk Load
A3: Points | B3: Given the following information:
A4: =INDEX('Point Grid'!B:B,MATCH('7'!A1,'Point Grid'!A:A,0)) -> 1.75 | B4: • Allocated loss adjustment expense is 15% of the indemnity amount. | J4: L = 1,000 | K4: Risk Load | L4: =0.000064*E9 -> 50.567872
B5: • The variance method has been selected to include a risk load in the | J5: L = 5,000 | K5: Risk Load | L5: =0.000064*E10 -> 605.917184
B6: Increased Limits Factors (ILFs) with k = 0.000064 and δ = 0.
J7: ILF without risk load | L7: =D10*(1+15%)/(D9*(1+15%)) -> 2.958333333
C8: Limit, L | D8: E[X; L] | E8: E[X2; L] | J8: ILF with risk load | L8: =(D10*(1+15%)+L5)/(D9*(1+15%)+L4) -> 3.407216851
C9: 1000 | D9: 840 | E9: 790123
C10: 5000 | D10: 2485 | E10: 9467456 | I10: (b) | J10: Without risk loads | L10: =0.75*1+0.25*L7 -> 1.489583333
J11: With risk loads | L11: =0.75*1+0.25*L8 -> 1.601804213
A12: (a) | B12: Calculate the following: | J12: Impact to premium from using risk loads | N12: =L11/L10-1 -> 0.07533709393
A13: =INDEX('Point Grid'!$C$8:$I$29,MATCH($A$1,'Point Grid'!$A$8:$A$29,0),MATCH(A12,'Point Grid'!$C$7:$I$7,0)) -> 1 | B13: • The risk loads for each limit.
A14: 1 | B14: • The ILF with and without risk load for the 5,000 limit.
A16: (b) | B16: Assuming portfolio weights of 75% for a 1,000 limit and 25% for a 5,000 limit,
A17: =INDEX('Point Grid'!$C$8:$I$29,MATCH($A$1,'Point Grid'!$A$8:$A$29,0),MATCH(A16,'Point Grid'!$C$7:$I$7,0)) -> 0.75 | B17: determine the overall impact on premium by using the ILFs with the risk loads
A18: 0.75 | B18: instead of the ILFs without risk loads.

Sheet 8
A1: 8 | B1: Finished | G1: Navigator | I1: Solution
H2: (a) | I2: Current Layer Frequency = F(10,000) - F(5,000) = | N2: =D11-D8 -> 0.088
A3: Points | B3: An insurer sells coverage with an attachment point of 5,000 and a layer limit of 5,000.
A4: =INDEX('Point Grid'!B:B,MATCH('8'!A1,'Point Grid'!A:A,0)) -> 1.75 | B4: The following table represents the expected cumulative severity distribution and limited | I4: Due to the severity increase, a claim that was 10,000 this year is now 11,000.
B5: expected severity for the current year at various limits. | I5: This means the layer 5,000 to 10,000 next year corresponds to the layer
C6: L | D6: F(L) | E6: E[X; L] | I6: 5,000/1.1 to 10,000/1.1 this year.
C7: 4545 | D7: 0.842 | E7: 1807 | I7: Hence
C8: 5000 | D8: 0.859 | E8: 1875 | I8: Future layer frequency = F(9,091) - F(4,545) = | N8: =D10-D7 -> 0.096
C9: 5500 | D9: 0.875 | E9: 1941
C10: 9091 | D10: 0.938 | E10: 2256 | I10: So the change in layer frequency is | M10: =N8/N2-1 -> 0.09090909091
C11: 10000 | D11: 0.947 | E11: 2308
C12: 11000 | D12: 0.954 | E12: 2357 | H12: (b) | I12: Current Layer Severity =
B14: The actuary expects a 10% severity increase for all claim sizes next year. | K14: =(E11-E8)/(D11-D8) -> 4920.454545
A16: (a) | B16: Calculate the percent change in frequency of claims in the layer. | I16: Future Layer Severity =
A17: =INDEX('Point Grid'!$C$8:$I$29,MATCH($A$1,'Point Grid'!$A$8:$A$29,0),MATCH(A16,'Point Grid'!$C$7:$I$7,0)) -> 0.75
A18: 0.75 | I18: =1.1*(E10-E7)/(D10-D7) -> 5144.791667
A20: (b) | B20: Calculate the percent change in pure premiums in the layer. | I20: Change in layer severity = | L20: =I18/K14-1 -> 0.04559276366
A21: =INDEX('Point Grid'!$C$8:$I$29,MATCH($A$1,'Point Grid'!$A$8:$A$29,0),MATCH(A20,'Point Grid'!$C$7:$I$7,0)) -> 1
A22: 1 | I22: Change in layer pure premium = (1 + layer change in frequency)*(1+ layer change in severity)-1
I23: =(1+M10)*(1+L20)-1 -> 0.1406466513

Sheet 9
A1: 9 | B1: Finished | I1: Navigator | K1: Solution
J2: (a) | K2: The experience period is the three years prior to 1/1/17, lagged by one year. Namely,
A3: Points | B3: Consider the following claims-made commercial general liability policy: | K3: 1/1/13 – 12/31/15.
A4: =INDEX('Point Grid'!B:B,MATCH('9'!A1,'Point Grid'!A:A,0)) -> 3.25 | B4: • The insurance contract was originally written January 1, 2011, and has been | K4: First we need the CSLC (Company Subject Loss Cost).
B5: renewed annually as a claims-made policy. | K5: Notice there's only one type of policy, Prem/Ops, and since it started in 2011, the 2017 policy is mature.
B6: • The annual Premises/Operations basic limits manual premium is $200,000 and | K6: Also, observe there's no mention of a special underwriting basis so use the standard approach with Table 14, Rule 5B.
B7: there is no products exposure.
B8: • The expected loss ratio is 70%. | K8: Year | L8: Subline | M8: Premium | N8: ELR | O8: PAF 13B | P8: PAF 13C | Q8: Detrend | R8: Loss Cost | S8: Comment
B9: • Loss experience is evaluated as of June 30, 2016. | K9: 2015 | L9: Prem/Ops | M9: 200000 | N9: 0.7 | O9: =$D$22 -> 1.03 | P9: =D26 -> 0.94 | Q9: =D31 -> 0.907 | R9: =PRODUCT(M9:Q9) -> 122942.036 | S9: 5th year
K10: 2014 | L10: Prem/Ops | M10: 200000 | N10: 0.7 | O10: =$D$22 -> 1.03 | P10: =E26 -> 0.91 | Q10: =D32 -> 0.864 | R10: =PRODUCT(M10:Q10) -> 113375.808 | S10: 4th year
B11: Claim Number | C11: Policy Year | D11: Indemnity | E11: ALAE | K11: 2013 | L11: Prem/Ops | M11: 200000 | N11: 0.7 | O11: =$D$22 -> 1.03 | P11: =F26 -> 0.88 | Q11: =D33 -> 0.823 | R11: 104435.408 | S11: 3rd year
B12: 1 | C12: 2011 | D12: 5000 | E12: 5000 | R12: =SUM(R9:R11) -> 340753.252 | S12: CSLC
B13: 2 | C13: 2012 | D13: 15000 | E13: 25000
B14: 3 | C14: 2013 | D14: 58000 | E14: 0 | K14: Next, look up the credibility, EER and MSL based on the CSLC using Table 16
B15: 4 | C15: 2013 | D15: 20000 | E15: 85000 | K15: Z = | L15: =C38 -> 0.54
B16: 5 | C16: 2014 | D16: 118000 | E16: 82000 | K16: EER = | L16: =D38 -> 0.94
B17: 6 | C17: 2015 | D17: 8000 | E17: 5000 | K17: MSL = | L17: =E38 -> 173150
B19: You may use the information in the following tables: | K19: Now use the claim history to calculate the Actual Experience Ratio
B20: Table 13.B | C20: Occurrence | D20: Claims-Made Year in Program | K20: Claim | L20: Basic Limits | M20: ALAE | N20: Basic + ALAE | O20: Cap by MSL | P20: Comment
B21: Subline | C21: Policy | D21: Mature | E21: Fourth | F21: Third | G21: Second | H21: First | K21: 1 | L21: 0 | M21: 0 | N21: =M21+L21 -> 0 | O21: =MIN(N21,$L$17) -> 0 | P21: Not in experience period
B22: Prem/Ops | C22: 1 | D22: 1.03 | E22: 1.14 | F22: 1.2 | G22: 1.32 | H22: 1.62 | K22: 2 | L22: 0 | M22: 0 | N22: =M22+L22 -> 0 | O22: =MIN(N22,$L$17) -> 0 | P22: Not in experience period
K23: 3 | L23: =MIN(D14,100000) -> 58000 | M23: =E14 -> 0 | N23: 58000 | O23: 58000
B24: Table 13.C | C24: Occurrence | D24: Claims-Made Year in Program | K24: 4 | L24: =MIN(D15,100000) -> 20000 | M24: =E15 -> 85000 | N24: 105000 | O24: 105000
B25: Subline | C25: Policy | D25: Mature | E25: Fourth | F25: Third | G25: Second | H25: First | K25: 5 | L25: 100000 | M25: 82000 | N25: 182000 | O25: 173150
B26: Prem/Ops | C26: 1 | D26: 0.94 | E26: 0.91 | F26: 0.88 | G26: 0.78 | H26: 0.67 | K26: 6 | L26: 8000 | M26: 5000 | N26: 13000 | O26: 13000
O27: =SUM(O21:O26) -> 349150 | P27: Limited Loss History
B28: Table 14.
B29: Experience | D29: Factors For | K29: Recall Claims-Made policies have no expected development.
B30: Period Year | C30: Subline | D30: Rule 5.B | E30: Rule 5.C
B31: Latest | C31: Prem/Ops | D31: 0.907 | E31: 0.926
B32: 2nd Latest | C32: Prem/Ops | D32: 0.864 | E32: 0.892
B33: 3rd Latest | C33: Prem/Ops | D33: 0.823 | E33: 0.858 | K33: AER = | L33: =O27/R12 -> 1.024641725
B35: Table 16.
B36: CSLC | C36: Credibility | D36: EER | E36: MSL
B37: 318,537 – 331,584 | C37: 0.53 | D37: 0.937 | E37: 170200 | K37: Mod = | L37: =L15*(L33-L16)/L16 -> 0.0486239698
B38: 331,585 – 345,206 | C38: 0.54 | D38: 0.94 | E38: 173150
B39: 345,207 – 359,440 | C39: 0.55 | D39: 0.944 | E39: 178700 | K39: Experience Modified Premium = 200,000 * Modification Factor = | Q39: =(1+L37)*200000 -> 209724.794
A41: (a) | B41: Calculate the experience modified premium for the policy effective January 1, 2017.
A42: =INDEX('Point Grid'!$C$8:$I$29,MATCH($A$1,'Point Grid'!$A$8:$A$29,0),MATCH(A41,'Point Grid'!$C$7:$I$7,0)) -> 3.25
A43: 3.25

Sheet 10
A1: 10 | B1: Finished | G1: Navigator | J1: Solution
I2: (a) | J2: Since the most recent prior year is not included in the experience period, only the first year
A3: Points | B3: An actuary is evaluating a risk to determine the appropriateness of applying any schedule | J3: of the safety program being removed is included in the three years of experience.
A4: =INDEX('Point Grid'!B:B,MATCH('10'!A1,'Point Grid'!A:A,0)) -> 1 | B4: credits or debits. In order to reduce expenses the insured removed a safety program | J4: Therefore, apply a debit of 2/3 of the maximum debit for removing the safety program.
B5: two years ago and in the next month will be reducing its staff. | J5: Safety Program | L5: =10%*2/3 -> 0.06666666667 | M5: debit
D7: Range of Modifications | J7: Since the staff are being reduced, it is reasonable to expect that even if the most experienced
B8: Risk Characteristic | C8: Description | D8: Credit | F8: Debit | J8: staff remain, they will be overworked and so more likely to be accident prone. Further, there
B9: Cooperation | C9: Safety Program | D9: 0.1 | E9: to | F9: 0.1 | J9: would be less supervision. Recommend a
B10: Employees | C10: Selection, training, supervision, experience | D10: 0.05 | E10: to | F10: 0.05 | J10: 0.02 | K10: debit for employees.
A12: (a) | B12: Recommend and defend an appropriate schedule modification. | J12: These combine to give a schedule modification of | O12: =L5+J10 -> 0.08666666667 | P12: debit
A13: =INDEX('Point Grid'!$C$8:$I$29,MATCH($A$1,'Point Grid'!$A$8:$A$29,0),MATCH(A12,'Point Grid'!$C$7:$I$7,0)) -> 1
A14: 1

Sheet 11
A1: 11 | B1: Finished | G1: Navigator | J1: Solution
I2: (a) | J2: Since the values are given in thousands throughout the tables, we can ignore the thousands for now.
A3: Points | B3: A Workers' Compensation insurer is facing an increasingly competitive market.
A4: =INDEX('Point Grid'!B:B,MATCH('11'!A1,'Point Grid'!A:A,0)) -> 2.5 | B4: Its management is concerned about customer retention, premium growth, and loss ratio | J4: Efficiency Statistic = Sample Variance of Standard Loss Ratios / Sample Variance of Manual Loss Ratios
B5: deterioration. The insurer's actuaries have proposed an updated experience rating plan.
B6: After grouping insureds for the purposes of an efficiency test, the projected impact of | J6: Current Plan
B7: this proposal is below (values in thousands): | J7: Sample Variance of Standard LRs | N7: =((G12-G17)^2+(G13-G17)^2+(G14-G17)^2+(G15-G17)^2+(G16-G17)^2)/(COUNT(G12:G16)-1) -> 0.00165
J8: Sample Variance of Manual LRs | N8: =((F12-F17)^2+(F13-F17)^2+(F14-F17)^2+(F15-F17)^2+(F16-F17)^2)/(COUNT(F12:F16)-1) -> 0.021725
B9: Current Plan
B10: Quintile | C10: Manual Premium | D10: Loss | E10: Standard Premium | F10: Loss Ratio to Manual | G10: Loss Ratio to Standard | J10: Efficiency Statistic | L10: =N7/N8 -> 0.07594936709
B12: A | C12: 4750 | D12: 1978 | E12: 3278 | F12: 0.42 | G12: 0.6 | J12: Proposed Plan
B13: B | C13: 4825 | D13: 2824 | E13: 4005 | F13: 0.59 | G13: 0.71 | J13: Sample Variance of Standard LRs | N13: =((G22-G27)^2+(G23-G27)^2+(G25-G27)^2+(G24-G27)^2+(G26-G27)^2)/(COUNT(G23:G27)-1) -> 0.00175
B14: C | C14: 4450 | D14: 2915 | E14: 4450 | F14: 0.66 | G14: 0.66 | J14: Sample Variance of Manual LRs | N14: =((F22-F27)^2+(F23-F27)^2+(F25-F27)^2+(F24-F27)^2+(F26-F27)^2)/(COUNT(F23:F27)-1) -> 0.0308
B15: D | C15: 4845 | D15: 3608 | E15: 5378 | F15: 0.74 | G15: 0.67
B16: E | C16: 4400 | D16: 3520 | E16: 5500 | F16: 0.8 | G16: 0.64 | J16: Efficiency Statistic | L16: =N13/N14 -> 0.05681818182
B17: Total | C17: =SUM(C12:C16) -> 23270 | D17: =SUM(D12:D16) -> 14845 | E17: =SUM(E12:E16) -> 22611 | F17: =ROUND(D17/C17,2) -> 0.64 | G17: =ROUND(D17/E17,2) -> 0.66
J18: The proposed plan has a lower efficiency statistic than the current plan so the
B19: Proposed Plan | J19: proposed plan performs better.
B20: Quintile | C20: Manual Premium | D20: Loss | E20: Standard Premium | F20: Loss Ratio to Manual | G20: Loss Ratio to Standard
J21: Alice: "You might be tempted to use the Excel function Var.S().
B22: A | C22: 4220 | D22: 1494 | E22: 2068 | F22: 0.35 | G22: 0.72 | J22: However, that would give the wrong answer because it automatically calculates the mean
B23: B | C23: 5100 | D23: 2922 | E23: 4233 | F23: 0.57 | G23: 0.69 | J23: of the range of data you give it using the arithmetic mean.
B24: C | C24: 4150 | D24: 3088 | E24: 4109 | F24: 0.74 | G24: 0.75 | J24: Whereas, we want to use the weighted averages from the Total rows when
B25: D | C25: 4950 | D25: 3689 | E25: 5346 | F25: 0.75 | G25: 0.69 | J25: calculating the variance."
B26: E | C26: 4850 | D26: 3652 | E26: 5723 | F26: 0.75 | G26: 0.64
B27: Total | C27: =SUM(C22:C26) -> 23270 | D27: =SUM(D22:D26) -> 14845 | E27: =SUM(E22:E26) -> 21479 | F27: =ROUND(D27/C27,2) -> 0.64 | G27: =ROUND(D27/E27,2) -> 0.69 | I27: (b) | J27: The proposed plan is more efficient which should help reduce adverse selection via better
J28: matching of rate to risk. This should result in less loss ratio deterioration.
B29: It is estimated that the upfront cost to adopt the new rating plan will be $500,000. | J29: The cost of adopting the proposed plan is approximately 2% of the premium, which is low.
J30: There is a risk that adopting the new plan may cause customers to experience large rate swings.
A31: (a) | B31: Perform an efficiency test and evaluate the proposed experience rating plan relative to | J31: This may hurt retention in the short term.
A32: =INDEX('Point Grid'!$C$8:$I$29,MATCH($A$1,'Point Grid'!$A$8:$A$29,0),MATCH(A31,'Point Grid'!$C$7:$I$7,0)) -> 1.5 | B32: the current plan. | J32: Overall, recommend adopting the proposed plan as it addresses almost all of the concerns.
A33: 1.5
A35: (b) | B35: In light of management's concerns, evaluate the merits of adopting the new rating plan
A36: =INDEX('Point Grid'!$C$8:$I$29,MATCH($A$1,'Point Grid'!$A$8:$A$29,0),MATCH(A35,'Point Grid'!$C$7:$I$7,0)) -> 1 | B36: versus keeping the current plan, and provide a recommendation.
A37: 1

Sheet 12
A1: 12 | B1: Finished | G1: Navigator | I1: Solution
H2: (a) | I2: Alice: "This isn't really a fair question for the new Computer Based Testing environment
A3: Points | B3: A policy has a flat dollar deductible of M and a maximum payout on a loss by the insurer of N. | I3: Nevertheless, it's an important topic to understand so you should make sure you know
A4: =INDEX('Point Grid'!B:B,MATCH('12'!A1,'Point Grid'!A:A,0)) -> 3.25 | I4: how to do it."
A6: (a) | B6: Draw a Lee diagram representing the expected amount of loss incurred by this policy.
A7: =INDEX('Point Grid'!$C$8:$I$29,MATCH($A$1,'Point Grid'!$A$8:$A$29,0),MATCH(A6,'Point Grid'!$C$7:$I$7,0)) -> 1 | B7: Label the following:
A8: 1 | B8: i. The axes
B9: ii. The deductible amount
B10: iii. The policy limit
B11: iv. The expected insured loss.
A13: (b) | B13: Assume cumulative losses follow a distribution F(x). Write the formula for covered losses
A14: =INDEX('Point Grid'!$C$8:$I$29,MATCH($A$1,'Point Grid'!$A$8:$A$29,0),MATCH(A13,'Point Grid'!$C$7:$I$7,0)) -> 0.5 | B14: for this policy using:
A15: 0.5 | B15: i. The layer method
B16: ii. The size method.
A18: (c) | B18: Briefly describe when the layer method may be preferred and when the size method may
A19: =INDEX('Point Grid'!$C$8:$I$29,MATCH($A$1,'Point Grid'!$A$8:$A$29,0),MATCH(A18,'Point Grid'!$C$7:$I$7,0)) -> 0.5 | B19: be preferred.
A20: 0.5 | I20: The expected insured loss is the shaded area denoted by B.
A22: (d) | B22: Use a Lee diagram to demonstrate the consistency test of ILFs. | H22: (b)
A23: =INDEX('Point Grid'!$C$8:$I$29,MATCH($A$1,'Point Grid'!$A$8:$A$29,0),MATCH(A22,'Point Grid'!$C$7:$I$7,0)) -> 1.25 | H23: i.
A24: 1.25
H25: ii.
H28: (c) | I28: The layer method is preferred when the survival function, S(x), is easy to integrate.
I29: The size method is preferred when you are calculating expected losses at a single limit
I30: because it is more intuitive to explain.
H32: (d)
I46: The consistency test of ILFs states the premium calculated from the layer formula
I47: applied to successive excess layers of constant width is a decreasing function
I48: of the attachment point limit.
I49: We have Area A > Area B > Area C and so the premium for layer L to 2L is greater than
I50: the premium for layer 2L to 3L, which is greater than the premium for layer 3L to 4L.
I51: Hence the consistency test is satisfied.

Sheet 13
A1: 13 | B1: Finished | G1: Navigator | I1: Solution
H2: (a) | I2: The maximum premium that can be charged is given by B + c*LG, where B is the basic premium
A3: Points | B3: A risk is written using a balanced retrospective rating plan with the following characteristics: | I3: c, is the loss conversion factor, and LG is the maximum ratable loss.
A4: =INDEX('Point Grid'!B:B,MATCH('13'!A1,'Point Grid'!A:A,0)) -> 2.5 | B4: • Losses at the minimum premium = $50,000
B5: • Losses at the maximum premium = $300,000 | I5: We need to find B = e - (c-1)*E + cI
B6: • Loss conversion factor = 1.05 | I6: where E is the expected aggregate loss and I is the net insurance charge.
B7: • e = $10,000
I8: E = | J8: =SUM(C13:C17,E13:E17)/D17 -> 200000
B9: The following table shows actual experience from a representative sample of risks that are
B10: similar to the risk in question: | I10: Entry ratio at minimum premium , rH = | M10: =50000/J8 -> 0.25
B11: Risk | C11: Actual Aggregate Loss | D11: Risk | E11: Actual Aggregate Loss | I11: Entry ratio at maximum premium, rG = | M11: =300000/J8 -> 1.5
B13: 1 | C13: 25000 | D13: 6 | E13: 175000 | I13: I = E*(φ(1.5) - ψ(0.25))
B14: 2 | C14: 50000 | D14: 7 | E14: 200000
B15: 3 | C15: 100000 | D15: 8 | E15: 300000 | I15: Now it's implicit we need to use the actual experience given to calculate the (Table M)
B16: 4 | C16: 100000 | D16: 9 | E16: 350000 | I16: insurance charges.
B17: 5 | C17: 150000 | D17: 10 | E17: 550000
I18: Actual | J18: Entry Ratio | K18: # Risk | L18: # Risks > r | M18: % Risks > r | N18: φ(r)
A19: (a) | B19: Determine the maximum premium that the insured can be charged. | I19: 0 | J19: =I19/$J$8 -> 0 | K19: =COUNTIF($C$13:$C$17,J19*$J$8)+COUNTIF($E$13:$E$17,J19*$J$8) -> 0 | L19: =COUNTIF($C$13:$C$17,">"&J19*$J$8)+COUNTIF($E$13:$E$17,">"&J19*$J$8) -> 10 | M19: =L19/$D$17 -> 1 | N19: =N20+M19*(J20-J19) -> 1
A20: =INDEX('Point Grid'!$C$8:$I$29,MATCH($A$1,'Point Grid'!$A$8:$A$29,0),MATCH(A19,'Point Grid'!$C$7:$I$7,0)) -> 2 | I20: =C13 -> 25000 | J20: =I20/$J$8 -> 0.125 | K20: =COUNTIF($C$13:$C$17,J20*$J$8)+COUNTIF($E$13:$E$17,J20*$J$8) -> 1 | L20: 9 | M20: =L20/$D$17 -> 0.9 | N20: 0.875
A21: 2 | I21: =C14 -> 50000 | J21: =I21/$J$8 -> 0.25 | K21: 1 | L21: 8 | M21: 0.8 | N21: 0.7625
I22: =C15 -> 100000 | J22: 0.5 | K22: 2 | L22: 6 | M22: 0.6 | N22: 0.5625
B23: An actuary has acquired actual aggregate data from a new book consisting of risks within the | I23: =C17 -> 150000 | J23: =I23/$J$8 -> 0.75 | K23: 1 | L23: 5 | M23: 0.5 | N23: 0.4125
B24: same industry. The loss experience of five representative risks from this book is shown below: | I24: =E13 -> 175000 | J24: 0.875 | K24: 1 | L24: 4 | M24: 0.4 | N24: 0.35
B25: Risk | C25: Actual Aggregate Loss | I25: =E14 -> 200000 | J25: 1 | K25: 1 | L25: 3 | M25: 0.3 | N25: 0.3
I26: =E15 -> 300000 | J26: 1.5 | K26: 1 | L26: 2 | M26: 0.2 | N26: 0.15
B27: 1 | C27: 275000 | I27: =E16 -> 350000 | J27: 1.75 | K27: 1 | L27: 1 | M27: 0.1 | N27: =N28+M27*(J28-J27) -> 0.1
B28: 2 | C28: 300000 | I28: =E17 -> 550000 | J28: 2.75 | K28: 1 | L28: 0 | M28: 0 | N28: 0
B29: 3 | C29: 500000 | I29: Alice: "Notice there are no duplicate rows."
B30: 4 | C30: 700000
B31: 5 | C31: 800000 | I31: φ(1.5) = | J31: =N26 -> 0.15
I32: ψ(0.25) = | J32: =N21+M10-1 -> 0.0125
A33: (b) | B33: The actuary proposes to combine the data from the two books, stating that the combined data | I33: So I = | J33: =J8*(J31-J32) -> 27500
A34: =INDEX('Point Grid'!$C$8:$I$29,MATCH($A$1,'Point Grid'!$A$8:$A$29,0),MATCH(A33,'Point Grid'!$C$7:$I$7,0)) -> 0.5 | B34: will result in a more accurate calculation of the insured's retrospective premium. | I34: Then B = | J34: =10000-(1.05-1)*J8+1.05*J33 -> 28875
A35: 0.5 | B35: Assess the validity of the actuary's statement.
I36: Maximum Premium that can be charged = | M36: =J34+1.05*300000 -> 343875
H38: (b) | I38: The expected aggregate loss for the new book is | N38: =AVERAGE(C27:C31) -> 515000
I39: The actuary is incorrect, you should combine the losses only if the expected value of the
I40: losses, the underlying distributions are the same and the risks are exposed to similar hazards.
I41: In this case the expected value of the new book is significantly higher than the old book.
I42: Hence, a separate Table M should be used.

Sheet 14
A1: 14 | B1: Finished | G1: Navigator | I1: Solution
H2: (a)
A3: Points | B3: A reinsurer has been supplied the following information from a large insurance company:
A4: =INDEX('Point Grid'!B:B,MATCH('14'!A1,'Point Grid'!A:A,0)) -> 3 | I4: E[X] = | J4: =D12*1000/C12 -> 500000
B5: Claim Size Range | C5: Expected Number of Claims | D5: Expected Ultimate Losses ($000) | I5: E[X; 1m] = | J5: =(D7*1000+SUM(C8:C11)*10^6)/C12 -> 387525 | L5: e(1m) = | M5: =($J$4-J5)/(1-SUM(C7:$C$7)/$C$12) -> 2249500
I6: E[X; 2m] = | J6: =(SUM(D7:D8)*1000+SUM(C9:C11)*2*10^6)/C12 -> 427890 | L6: e(2m) = | M6: =($J$4-J6)/(1-SUM(C$7:$C8)/$C$12) -> 2249921.997
B7: $0 to $1,000,000 | C7: 19000 | D7: 6750500 | I7: E[X; 3m] = | J7: =(SUM(D7:D9)*1000+SUM(C10:C11)*3*10^6)/C12 -> 453765 | L7: e(3m) = | M7: =($J$4-J7)/(1-SUM(C$7:$C9)/$C$12) -> 2249878.345
B8: $1,000,001 to $2,000,000 | C8: 359 | D8: 525300 | I8: E[X; 4m] = | J8: =(SUM(D7:D10)*1000+SUM(C11)*4*10^6)/C12 -> 470300 | L8: e(4m) = | M8: =($J$4-J8)/(1-SUM(C$7:$C10)/$C$12) -> 2250000
B9: $2,000,001 to $3,000,000 | C9: 230 | D9: 566500
B10: $3,000,001 to $4,000,000 | C10: 147 | D10: 507700
B11: above $4,000,001 | C11: 264 | D11: 1650000
B12: Total | C12: =SUM(C7:C11) -> 20000 | D12: =SUM(D7:D11) -> 10000000
B14: The reinsurer is entering into an excess of loss contract with the primary insurance company.
B15: The reinsurer will pay all losses above a $5,000,000 per claim retention.
A17: (a) | B17: Construct a graph of the excess severity function for claim sizes of $1,000,000, $2,000,000,
A18: =INDEX('Point Grid'!$C$8:$I$29,MATCH($A$1,'Point Grid'!$A$8:$A$29,0),MATCH(A17,'Point Grid'!$C$7:$I$7,0)) -> 1.5 | B18: $3,000,000, and $4,000,000.
A19: 1.5
A21: (b) | B21: Calculate the reinsurer's expected losses under the proposed contract.
A22: =INDEX('Point Grid'!$C$8:$I$29,MATCH($A$1,'Point Grid'!$A$8:$A$29,0),MATCH(A21,'Point Grid'!$C$7:$I$7,0)) -> 1.5
A23: 1.5
H24: (b) | I24: From part (a) the excess severity distribution is flat which means losses follow an
I25: exponential distribution above $1 million, with mean 2,250,000.
I26: This means e(5m) = e(4m) = … = e(1m) = 2,250,000.
I27: The reinsurer pays all losses above $5,000,000, so we need the expected number of claims over $5M.
I28: In part (a) we found information for losses in excess of 1,000,000 so
I29: E[N|X>5M] = P(X>5M | X>1M) * E[N|X>1M]
I30: P(X>5M | X>1M) = S(5M) / S(1M) where S is the survival function for the exponential distribution.
I33: So P(X>5M | X> 1M) = | K33: =EXP(-5*10^6/2250000)/EXP(-1*10^6/2250000) -> 0.1690133154
I34: E[N|X>1M] = | K34: =(C12-C7) -> 1000
I36: So E[N|X>5M] = | K36: =K34*K33 -> 169.0133154
I37: Multiplying this by the expected excess severity gives the reinsurer's expected loss
I38: =K36*2250000 -> 380279959.7

Sheet 15
A1: 15 | B1: Finished | H1: Navigator | K1: Solution
J2: (a) | K2: Tax multiplier = | M2: =1/(1-E10) -> 1.030927835
A3: Points | B3: The following applies to an incurred loss retrospectively rated policy effective January 1, 2017. | K3: Loss conversion factor = | N3: =1+E7 -> 1.08
A4: =INDEX('Point Grid'!B:B,MATCH('15'!A1,'Point Grid'!A:A,0)) -> 3.25
B5: Per-occurrence limit | E5: 150000 | K5: Retrospective Premium = (B + cL)*T
B6: Maximum ratable loss | E6: 600000
B7: ULAE as a percentage of loss & ALAE | E7: 0.08 | K7: Time 0:
B8: Expected Loss & ALAE limited to $150,000 | E8: 400000 | K8: Ratable Loss = | M8: =MIN(E8,E6) -> 400000 | N8: ← Alice: "At time 0 we only know the expected ratable loss."
B9: Basic Premium | E9: 375000 | K9: Retro Premium = | M9: =(E9+N3*M8)*M2 -> 831958.7629
B10: Tax Rate | E10: 0.03 | K10: ="The insurer pays the full initial retro premium of "&TEXT(M9,"$0,000.00") -> The insurer pays the full initial retro premium of $831,958.76
B12: The expected loss & ALAE limited to $150,000 is used to determine the initial premium. | K12: The first premium adjustment is at 18 months
B13: Retrospective rating adjustments start at 18 months and occur every twelve months thereafter.
K14: Time 18 months:
B15: The following loss experience occurs during the policy period. All claims are closed at | K15: Ratable Loss = | M15: =MIN(E20,E6) -> 375000 | N15: ← Alice: "Don't forget to show you considered the maximum ratable loss."
B16: 42 months. | K16: Retro Premium = | M16: =(E9+N3*M15)*M2 -> 804123.7113
E17: Maturity (months) | K17: ="The insurer pays "&TEXT(M16-M9,"$0,000.00") -> The insurer pays -$27,835.05
E18: 18 | F18: 30 | G18: 42 | K18: i.e. the insurer receives a premium refund.
B19: Unlimited Incurred Loss & ALAE | E19: 425000 | F19: 650000 | G19: 950000
B20: Incurred Loss & ALAE Limited to $150,000 | E20: 375000 | F20: 475000 | G20: 700000 | K20: Subsequent adjustments occur every 12 months until 42 months have elapse
B21: Incurred Loss & ALAE Excess of $150,000 | E21: 50000 | F21: 175000 | G21: 250000
K22: Time 30 months:
A23: (a) | B23: Determine the amount and timing of each incremental cash flow payment made by the insured | K23: Ratable Loss = | M23: =MIN(F20,E6) -> 475000
A24: =INDEX('Point Grid'!$C$8:$I$29,MATCH($A$1,'Point Grid'!$A$8:$A$29,0),MATCH(A23,'Point Grid'!$C$7:$I$7,0)) -> 1.75 | B24: for this policy beginning with time 0. | K24: Retro Premium = | M24: =(E9+N3*M23)*M2 -> 915463.9175
A25: 1.75 | K25: ="The insurer pays "&TEXT(M24-M16,"$0,000.00") -> The insurer pays $111,340.21
A27: (b) | B27: Propose and justify an alternative policy that would increase the insured's cash flow benefit | K27: Time 42 months:
A28: =INDEX('Point Grid'!$C$8:$I$29,MATCH($A$1,'Point Grid'!$A$8:$A$29,0),MATCH(A27,'Point Grid'!$C$7:$I$7,0)) -> 1 | B28: without the insured retaining any additional excess loss risk. | K28: Ratable Loss = | M28: =MIN(G20,E6) -> 600000
A29: 1 | K29: Retro Premium = | M29: =(E9+N3*M28)*M2 -> 1054639.175
K30: ="The insurer pays "&TEXT(M29-M24,"$0,000.00") -> The insurer pays $139,175.26
A31: (c) | B31: Identify and briefly describe one disadvantage to the insurer of the proposed plan in part (b)
A32: =INDEX('Point Grid'!$C$8:$I$29,MATCH($A$1,'Point Grid'!$A$8:$A$29,0),MATCH(A31,'Point Grid'!$C$7:$I$7,0)) -> 0.5 | B32: above compared to the existing retrospectively rated plan. | J32: (b) | K32: A large deductible policy with a deductible of $150,000 and an aggregate deductible of
A33: 0.5 | K33: $600,000 exposes the insured to the same loss potential. However, the insured pays a lower
K34: premium to cover only the excess losses and reimburses the reinsurer for deductible losses later.
K35: This creates a cashflow advantage for the insured as they can invest their money for longer.
J37: (c) | K37: A large deductible plan poses credit risk for the insurer because they pay all losses upfront
K38: and then seek reimbursement for deductible losses from the insured. There is a risk the
K39: insured may not be able to pay.
K40: A retrospective rating plan also has credit risk but it is smaller in magnitude because the
K41: additional premium payments are usually much smaller than deductible recoveries.

Sheet 16
A1: 16 | B1: Finished | F1: Navigator | I1: Solution
H2: (a) | I2: 1. If there is insufficient data then the resulting distribution may have significant bias and not
A3: Points | B3: An insurance company generally uses two different methods to price excess layer | I3: reflect reality.
A4: =INDEX('Point Grid'!B:B,MATCH('16'!A1,'Point Grid'!A:A,0)) -> 1.75 | B4: insurance contracts: | I4: 2. Continuous approximation models require intensive calculation which can be time consuming and costly.
B5: • Empirical construction of Table M; or
B6: • Approximating the distribution of aggregate losses with a continuous approximation | H6: (b) | I6: 1. Divide the available data into homogeneous risk groups based on similar size policies for example.
B7: model. | I7: 2. Calculate the average expected aggregate loss across all policies in the risk group.
I8: 3. For each policy, compute its entry ratio by dividing its aggregate loss by the expected aggregate loss.
A9: (a) | B9: Briefly describe two potential disadvantages of using a continuous approximation model. | I9: 4. Starting at 0, order the unique entry ratios in ascending order.
A10: =INDEX('Point Grid'!$C$8:$I$29,MATCH($A$1,'Point Grid'!$A$8:$A$29,0),MATCH(A9,'Point Grid'!$C$7:$I$7,0)) -> 0.5 | I10: 5. Determine the percentage of risks above each entry ratio.
A11: 0.5 | I11: 6. Calculate the Table M insurance charge for each entry ratio, starting at the bottom with 0 and
I12: then working upward by adding (difference between entry ratios) * % risks above r to the result.
A13: (b) | B13: Fully describe the process of constructing an empirical Table M and estimating the | I13: 7. Assuming the excess layer has no upper bound. Calculate the entry ratio for the excess layer by dividing the excess layer bound by the expected aggregate loss.
A14: =INDEX('Point Grid'!$C$8:$I$29,MATCH($A$1,'Point Grid'!$A$8:$A$29,0),MATCH(A13,'Point Grid'!$C$7:$I$7,0)) -> 1.25 | B14: aggregate loss cost of an excess layer using the table. | I14: 8. Calculate the insurance charge by multiplying the expected aggregate loss by the Table M insurance charge for the excess layer entry ratio.
A15: 1.25

Sheet 17
A1: 17 | B1: Finished | H1: Navigator | K1: Solution
J2: (a)
A3: Points | B3: A Workers' Compensation policy has the following limits and expected losses:
A4: =INDEX('Point Grid'!B:B,MATCH('17'!A1,'Point Grid'!A:A,0)) -> 2 | K4: k = | L4: =(E6-E7)/E6 -> 0.2857142857
B5: Per-Occurrence Limit | E5: 300000
B6: Expected Unlimited Aggregate Losses | E6: 700000
B7: Expected Limited Aggregate losses | E7: 500000
B8: Aggregate Deductible Limit | E8: 800000 | K8: ICRLL = | L8: =(1+0.8*L4)/(1-L4) -> 1.72
B9: State Hazard Group Differential | E9: 0.95
K10: Adjusted Expected Unlimited Loss = | O10: =E6*E9*L8 -> 1143800
B11: Table of Expected Loss Groups | K11: Implies expected loss group 28
B12: Expected Loss Group | C12: Range of Values
B13: 31 | C13: 630,000 – 720,000 | K13: (Limited) Entry Ratio = Aggregate Deductible / Expected Limited Aggregate Loss
B14: 30 | C14: 720,001 – 830,000 | K14: =E8/E7 -> 1.6
B15: 29 | C15: 830,001 – 990,000
B16: 28 | C16: 990,001 – 1,180,000 | K16: Look up Table M insurance charge based on entry ratio and expected loss group
B17: 27 | C17: 1,180,001 – 1,415,000 | K17: =F26 -> 0.1322
B18: 26 | C18: 1,415,001 – 1,744,000
K19: Expected loss cost = Expected per-occurrence excess loss + (Expected Limited Agg Losses)*(Table M insurance charge)
B20: Table of Insurance Charges | K20: =(E6-E7)+E7*K17 -> 266100
C21: Expected Loss Group
B22: Entry Ratio | C22: 31 | D22: 30 | E22: 29 | F22: 28 | G22: 27 | H22: 26 | J22: (b) | K22: The per-occurrence limit reduces the variance of the underlying severity distribution. So
B23: 0.43 | C23: 0.5675 | D23: 0.5626 | E23: 0.5584 | F23: 0.5543 | G23: 0.5497 | H23: 0.5456 | K23: the variance of the aggregate distribution is reduced as well. The ICRLL procedure approximates
B24: 0.6 | C24: 0.4865 | D24: 0.4799 | E24: 0.4737 | F24: 0.4676 | G24: 0.4613 | H24: 0.4553 | K24: a Limited Table M by increasing the expected unlimited losses used to find the expected loss group
B25: 1.14 | C25: 0.2658 | D25: 0.2552 | E25: 0.2448 | F25: 0.2341 | G25: 0.2234 | H25: 0.2128 | K25: because policies with larger expected losses have lower variance in their aggregate loss distribution.
B26: 1.6 | C26: 0.1644 | D26: 0.1537 | E26: 0.1367 | F26: 0.1322 | G26: 0.1215 | H26: 0.1107 | K26: The ICRLL procedure also adjusts the expected loss for differences in risk and location via the
B27: 2.67 | C27: 0.0822 | D27: 0.0769 | E27: 0.0684 | F27: 0.0661 | G27: 0.0608 | H27: 0.0554 | K27: state/hazard group multiplier to further align the variance of the loss distribution
K28: with the variances found in the table m's.
A29: (a) | B29: Calculate the total expected loss cost for this policy using the Insurance Charge Reflecting
A30: =INDEX('Point Grid'!$C$8:$I$29,MATCH($A$1,'Point Grid'!$A$8:$A$29,0),MATCH(A29,'Point Grid'!$C$7:$I$7,0)) -> 1.5 | B30: Loss Limitation (ICRLL) adjustment procedure.
A31: 1.5
A33: (b) | B33: Describe how the ICRLL procedure is used to adjust expected losses for a Workers'
A34: =INDEX('Point Grid'!$C$8:$I$29,MATCH($A$1,'Point Grid'!$A$8:$A$29,0),MATCH(A33,'Point Grid'!$C$7:$I$7,0)) -> 0.5 | B34: Compensation policy.
A35: 0.5

Sheet 18
A1: 18 | B1: Finished | J1: Navigator | N1: Solution
M2: (a) | O2: where L is the limited expected value function.
A3: Points | B3: A homogeneous group of property risks exhibit the following risk profile:
A4: =INDEX('Point Grid'!B:B,MATCH('18'!A1,'Point Grid'!A:A,0)) -> 3.25 | B4: Exposure Distribution | C4: Losses as a percent of the Maximum Possible Loss (MPL) | N4: Loss (% of MPL) | O4: Probabililty | P4: (given a loss occurred)
N5: 0.25 | O5: =B7/(1-$B$6) -> 0.3
B6: 0.8 | C6: 0 | N6: 0.5 | O6: =B8/(1-$B$6) -> 0.4
B7: 0.06 | C7: 0.25 | N7: 0.75 | O7: 0.2
B8: 0.08 | C8: 0.5 | N8: 1 | O8: 0.1
B9: 0.04 | C9: 0.75
B10: 0.02 | C10: 1 | N10: Expected Loss | O10: =SUMPRODUCT(N5:N8,O5:O8) -> 0.525
A12: (a) | B12: Plot the exposure curve, G(x). Label the axes and the points on the curve. | N12: x (% of MPL) | O12: G(x)
A13: =INDEX('Point Grid'!$C$8:$I$29,MATCH($A$1,'Point Grid'!$A$8:$A$29,0),MATCH(A12,'Point Grid'!$C$7:$I$7,0)) -> 2 | N13: 0 | O13: 0
A14: 2 | N14: 0.25 | O14: =(MIN(N14,$N$5)*$O$5+MIN(N14,$N$6)*$O$6+MIN(N14,$N$7)*$O$7+MIN(N14,$N$8)*$O$8)/$O$10 -> 0.4761904762
N15: 0.5 | O15: =(MIN(N15,$N$5)*$O$5+MIN(N15,$N$6)*$O$6+MIN(N15,$N$7)*$O$7+MIN(N15,$N$8)*$O$8)/$O$10 -> 0.8095238095
A16: (b) | B16: Determine the parameters b and g for the 2-parameter MBBEFD distribution that fits this | N16: 0.75 | O16: 0.9523809524
A17: =INDEX('Point Grid'!$C$8:$I$29,MATCH($A$1,'Point Grid'!$A$8:$A$29,0),MATCH(A16,'Point Grid'!$C$7:$I$7,0)) -> 0.75 | B17: exposure curve using the following information: | N17: 1 | O17: 1
A18: 0.75
B19: Calculated value of parameter b
C20: μ
B21: Parameter g | C21: 0.4 | D21: 0.425 | E21: 0.45 | F21: 0.475 | G21: 0.5 | H21: 0.525 | I21: 0.55 | J21: 0.575 | K21: 0.6
B22: 50 | C22: 0.0023 | D22: 0.0017 | E22: 0.0013 | F22: 0.0009 | G22: 0.0005 | H22: 0.0003 | I22: 0.0002 | J22: 0.0001 | K22: 0.0001
B23: 25 | C23: 0.0096 | D23: 0.0073 | E23: 0.0055 | F23: 0.0041 | G23: 0.0022 | H23: 0.0015 | I23: 0.001 | J23: 0.0006 | K23: 0.0004
B24: 16.7 | C24: 0.0239 | D24: 0.0181 | E24: 0.0137 | F24: 0.0103 | G24: 0.0057 | H24: 0.0039 | I24: 0.0026 | J24: 0.0017 | K24: 0.001
B25: 12.5 | C25: 0.0483 | D25: 0.0365 | E25: 0.0276 | F25: 0.0209 | G25: 0.0118 | H25: 0.0081 | I25: 0.0055 | J25: 0.0036 | K25: 0.0023
B26: 10 | C26: 0.0877 | D26: 0.0659 | E26: 0.0497 | F26: 0.0375 | G26: 0.0212 | H26: 0.0147 | I26: 0.01 | J26: 0.0067 | K26: 0.0044
B27: 8.3 | C27: 0.1498 | D27: 0.1116 | E27: 0.0836 | F27: 0.0628 | G27: 0.0354 | H27: 0.0245 | I27: 0.0168 | J27: 0.0113 | K27: 0.0075
B28: 7.1 | C28: 0.247 | D28: 0.1817 | E28: 0.1347 | F28: 0.1004 | G28: 0.0561 | H28: 0.0389 | I28: 0.0267 | J28: 0.0181 | K28: 0.0121
B29: 6.3 | C29: 0.4 | D29: 0.2892 | E29: 0.2116 | F29: 0.1561 | G29: 0.0861 | H29: 0.0594 | I29: 0.0408 | J29: 0.0277 | K29: 0.0185
B30: 5.6 | C30: 0.06446 | D30: 0.4557 | E30: 0.3277 | F30: 0.2385 | G30: 0.1291 | H30: 0.0885 | I30: 0.0605 | J30: 0.0411 | K30: 0.0276
B31: 5 | C31: 1.0469 | D31: 0.719 | E31: 0.5505 | F31: 0.3616 | G31: 0.191 | H31: 0.1297 | I31: 0.0882 | J31: 0.0597 | K31: 0.04
A33: (c) | B33: A reinsurer uses this exposure curve to price a property excess of loss treaty where the
A34: =INDEX('Point Grid'!$C$8:$I$29,MATCH($A$1,'Point Grid'!$A$8:$A$29,0),MATCH(A33,'Point Grid'!$C$7:$I$7,0)) -> 0.5 | B34: underlying limit is $100 million. Calculate the proportion of total losses in the layer
A35: 0.5 | B35: $25 million excess of $25 million. | M35: (b)
N37: p is the probability of a total loss, given a loss occurred.
N38: p = | O38: =B10/(1-B6) -> 0.1 | P38: ← Alice: "You could have used linear interpolation to estimate G'(1)"
N39: g = | O39: =1/O38 -> 10
N41: Use linear interpolation to estimate G'(0)
N42: G'(0) = | O42: =(O14-O13)/(N14-N13) -> 1.904761905
N43: μ = | O43: =1/O42 -> 0.525
N45: Look up b using the table and calculated values of g and μ
N46: b = | O46: =H26 -> 0.0147
M48: (c)
N50: MPL = | O50: =100*10^6 -> 100000000
N51: Limit = | O51: =25*10^6 -> 25000000
N52: Retention = | O52: =25*10^6 -> 25000000
N54: Exposure = | O54: ="G("&(O51+O52)/O50&") - G("&O52/O50&")" -> G(0.5) - G(0.25) | P54: = | Q54: =O15-O14 -> 0.3333333333 | R54: using the table in part (a) above.

Sheet 19
A1: 19 | B1: Finished | G1: Navigator | J1: Solution
I2: (a) | J2: Retention | K2: 500000 | M2: Limit | N2: 500000
A3: Points | B3: A primary insurer wants to institute a swing plan with the following terms:
A4: =INDEX('Point Grid'!B:B,MATCH('19'!A1,'Point Grid'!A:A,0)) -> 3 | B4: • Layer: $500,000 xs $500,000 per claim | J4: Year | K4: Layer Loss | L4: Premium | M4: Loss Ratio
B5: • Premium = Layer Losses * 1.3 | J5: 2012 | K5: =MAX(0,MIN($N$2,D13-$K$2))+MAX(0,MIN($N$2,E13-$K$2))+MAX(0,MIN($N$2,F13-$K$2))+MAX(0,MIN($N$2,G13-$K$2)) -> 12017 | L5: =IF(K5*1.3<100000,100000,IF(K5*1.3>325000,325000,K5*1.3)) -> 100000 | M5: =K5/L5 -> 0.12017
B6: • Minimum Premium = $100,000 | J6: 2013 | K6: =MAX(0,MIN($N$2,D14-$K$2))+MAX(0,MIN($N$2,E14-$K$2))+MAX(0,MIN($N$2,F14-$K$2))+MAX(0,MIN($N$2,G14-$K$2)) -> 0 | L6: =IF(K6*1.3<100000,100000,IF(K6*1.3>325000,325000,K6*1.3)) -> 100000 | M6: =K6/L6 -> 0
B7: • Maximum Premium = $325,000 | J7: 2014 | K7: 204895 | L7: 266363.5 | M7: 0.7692307692
J8: 2015 | K8: 500000 | L8: 325000 | M8: 1.538461538
B9: The reinsurer has analyzed the insurer's experience. All claims are closed and trend has | J9: 2016 | K9: 154158 | L9: 200405.4 | M9: 0.7692307692
B10: been applied.
B11: Accident Year | C11: On-Level Premium | D11: Claim #1 | E11: Claim #2 | F11: Claim #3 | G11: Claim #4 | J11: Expected reinsurer loss ratio using equal weights for each year | P11: =SUM(M5:M9)/COUNT(M5:M9) -> 0.6394186154
B13: 2012 | C13: 400000 | D13: 465899 | E13: 230567 | F13: 512017 | J13: Alice: "The 2nd CAS sample solution to part (a) is technically incorrect because it is the weighted average loss ratio"
B14: 2013 | C14: 420000 | D14: 240785 | E14: 125766 | F14: 80154 | G14: 470666 | J14: which doesn't give each year equal weight. To see this, note the denominator in each average used
B15: 2014 | C15: 1200000 | D15: 704895 | E15: 106528 | J15: in the sample solution will cancel out, leaving the weighted average formula. However, the
B16: 2015 | C16: 2000000 | D16: 45988 | E16: 349145 | F16: 376011 | G16: 1246852 | J16: examiner's report does say the CAS accepted the weighted average answer."
B17: 2016 | C17: 2200000 | D17: 437100 | E17: 654158 | F17: 250000 | G17: 156750
I18: (b) | J18: An empirical distribution model is not appropriate because there are not many claims within
A19: (a) | B19: Calculate the expected loss ratio for the reinsurer based on the empirical distribution | J19: the layer, so the data isn't credible. That is, we don't know it will reflect all possible outcomes.
A20: =INDEX('Point Grid'!$C$8:$I$29,MATCH($A$1,'Point Grid'!$A$8:$A$29,0),MATCH(A19,'Point Grid'!$C$7:$I$7,0)) -> 1.5 | B20: model using equal weights for each year.
A21: 1.5 | I21: (c) | J21: 1. A collective risk model assumes frequency and severity are independent and that all
J22: observations are independent. These assumptions may not hold.
A23: (b) | B23: Determine if an empirical distribution model is appropriate for this account and give one | J23: 2. Collective risk models involve complex calculations and can give a false impression of accuracy.
A24: =INDEX('Point Grid'!$C$8:$I$29,MATCH($A$1,'Point Grid'!$A$8:$A$29,0),MATCH(A23,'Point Grid'!$C$7:$I$7,0)) -> 0.5 | B24: reason in support of your answer. | J24: You need to check the reasonableness of the results.
A25: 0.5
A27: (c) | B27: The use of a collective risk model is an alternative approach. Explain two concerns
A28: =INDEX('Point Grid'!$C$8:$I$29,MATCH($A$1,'Point Grid'!$A$8:$A$29,0),MATCH(A27,'Point Grid'!$C$7:$I$7,0)) -> 1 | B28: when using this type of model.
A29: 1

Sheet 20
A1: 20 | B1: Finished | F1: Navigator | I1: Solution
H2: (a) | I2: A is the damage ratio at each intensity (the damage ratio curve).
A3: Points | B3: An earthquake model produces the following damage function for a $1,000,000 home in | I3: B is the uncertainty in the damage ratio at the given intensities.
A4: =INDEX('Point Grid'!B:B,MATCH('20'!A1,'Point Grid'!A:A,0)) -> 2.5 | B4: California: | I4: C is the probability distribution for the earthquake intensity felt by the home given
I5: a particular earthquake has occurred.
H7: (b) | I7: Reading the damage ratios from the given chart.
I8: EQ Intensity | J8: Probability | K8: Damage Ratio | L8: Expected Damage
I9: =C25 -> 3.5 | J9: 0.1 | K9: 0.2 | L9: =K9*10^6 -> 200000
I10: 6 | J10: 0.05 | K10: 0.45 | L10: =K10*10^6 -> 450000
I11: 8.5 | J11: 0.02 | K11: 0.8 | L11: 800000
I13: Expected Loss | J13: =SUMPRODUCT(J9:J11,L9:L11) -> 58500
I15: Expected Loss Squared = | K15: =J9*L9^2+J10*L10^2+J11*L11^2 -> 26925000000
I16: Std Dev = | J16: =SQRT(K15-J13^2) -> 153306.0664
I18: Risk Load = | J18: =8%*J16 -> 12264.48531
I20: Premium = (Expected Loss + Risk Load)/(1 - Expense Load)
I21: =(J13+J18)/(1-20%) -> 88455.60664
B23: The probability of an event occurring with a given intensity is:
C24: Intensity | D24: Probability
C25: 3.5 | D25: 0.1
C26: 6 | D26: 0.05
C27: 8.5 | D27: 0.02
A29: (a) | B29: Identify what A, B, and C represent in the above graph.
A30: =INDEX('Point Grid'!$C$8:$I$29,MATCH($A$1,'Point Grid'!$A$8:$A$29,0),MATCH(A29,'Point Grid'!$C$7:$I$7,0)) -> 0.75
A31: 0.75
A33: (b) | B33: Determine the premium for this home given the following information:
A34: =INDEX('Point Grid'!$C$8:$I$29,MATCH($A$1,'Point Grid'!$A$8:$A$29,0),MATCH(A33,'Point Grid'!$C$7:$I$7,0)) -> 1.75 | B34: • The insurer's expense load is 20% of premium
A35: 1.75 | B35: • The risk load is set to 8% of the standard deviation of the loss.
